[Event "Titled Tuesday Blitz November 29 Late 2022"]
[White "Donchenko, Alexander"]
[Black "O`Gorman, Tom"]
[WhiteFideId "24603295"]
[BlackFideId "2508249"]
[WhiteElo "2572"]
[BlackElo "2271"]
[Result "1-0"]
[Round "04"]
[TimeControl "180+1"]
[Date "2022.11.30"]
[WhiteClock "0:02:21"]
[BlackClock "0:01:28"]

1. c4 {[%clk 0:03:00]}  Nf6 {[%clk 0:02:57]} 2. g3 {[%clk 0:03:01]}  g6 {[%clk 0:02:58]} 3. Bg2 {[%clk 0:03:01]}  Bg7 {[%clk 0:02:58]} 4. Nc3 {[%clk 0:03:02]}  O-O {[%clk 0:02:59]} 5. d4 {[%clk 0:03:03]}  d6 {[%clk 0:02:59]} 6. Nf3 {[%clk 0:03:03]}  Nc6 {[%clk 0:02:59]} 7. O-O {[%clk 0:03:04]}  e5 {[%clk 0:02:59]} 8. dxe5 {[%clk 0:03:05]}  dxe5 {[%clk 0:02:59]} 9. Qxd8 {[%clk 0:03:06]}  Rxd8 {[%clk 0:02:59]} 10. Bg5 {[%clk 0:03:06]}  h6 {[%clk 0:02:59]} 11. Bxf6 {[%clk 0:03:06]}  Bxf6 {[%clk 0:03:00]} 12. Nd5 {[%clk 0:03:05]}  Bg7 {[%clk 0:03:01]} 13. Nxc7 {[%clk 0:03:06]}  Rb8 {[%clk 0:03:01]} 14. e4 {[%clk 0:03:06]}  Bg4 {[%clk 0:02:57]} 15. Nd5 {[%clk 0:03:03]}  Bxf3 {[%clk 0:02:49]} 16. Bxf3 {[%clk 0:03:03]}  Bf8 {[%clk 0:02:49]} 17. Rfd1 {[%clk 0:02:59]}  Nd4 {[%clk 0:02:46]} 18. Kg2 {[%clk 0:02:59]}  Kg7 {[%clk 0:02:43]} 19. b4 {[%clk 0:02:57]}  b6 {[%clk 0:02:41]} 20. Rac1 {[%clk 0:02:55]}  Rbc8 {[%clk 0:02:40]} 21. Bg4 {[%clk 0:02:52]}  f5 {[%clk 0:02:37]} 22. exf5 {[%clk 0:02:50]}  gxf5 {[%clk 0:02:38]} 23. Bh3 {[%clk 0:02:50]}  Kg6 {[%clk 0:02:35]} 24. a3 {[%clk 0:02:47]}  Rc6 {[%clk 0:02:27]} 25. Ne3 {[%clk 0:02:44]}  Bg7 {[%clk 0:02:08]} 26. Nxf5 {[%clk 0:02:40]}  Rc7 {[%clk 0:01:59]} 27. c5 {[%clk 0:02:33]}  bxc5 {[%clk 0:01:59]} 28. Rxc5 {[%clk 0:02:33]}  Rxc5 {[%clk 0:01:58]} 29. bxc5 {[%clk 0:02:34]}  Bf8 {[%clk 0:01:45]} 30. Nxd4 {[%clk 0:02:28]}  Rxd4 {[%clk 0:01:45]} 31. Rxd4 {[%clk 0:02:25]}  exd4 {[%clk 0:01:46]} 32. c6 {[%clk 0:02:25]}  Bd6 {[%clk 0:01:46]} 33. Kf3 {[%clk 0:02:25]}  Bc7 {[%clk 0:01:37]} 34. Ke4 {[%clk 0:02:24]}  Bb6 {[%clk 0:01:38]} 35. Bf1 {[%clk 0:02:22]}  Kf6 {[%clk 0:01:37]} 36. f4 {[%clk 0:02:22]}  Ke6 {[%clk 0:01:35]} 37. g4 {[%clk 0:02:22]}  Kd6 {[%clk 0:01:35]} 38. Bb5 {[%clk 0:02:22]}  Kc5 {[%clk 0:01:35]} 39. a4 {[%clk 0:02:22]}  a6 {[%clk 0:01:32]} 40. Bxa6 {[%clk 0:02:22]}  Kxc6 {[%clk 0:01:32]} 41. h4 {[%clk 0:02:21]}  Kd6 {[%clk 0:01:28]} 42. g5 {[%clk 0:02:21]}  hxg5 {[%clk 0:01:28]} 43. hxg5 {[%clk 0:02:21]}  Ke6 {[%clk 0:01:29]} 44. f5+ {[%clk 0:02:21]}  Kf7 {[%clk 0:01:29]} 45. Bc4+ {[%clk 0:02:21]}  Kf8 {[%clk 0:01:28]} 46. f6 {[%clk 0:02:21]} 1-0


[Site "https://www.chess.com"]

[Event "Titled Tuesday Blitz November 29 Late 2022"]
[White "Dzierzak, Radoslaw"]
[Black "Rorrer, Grayson"]
[WhiteFideId "1161407"]
[BlackFideId "30944996"]
[WhiteElo "2111"]
[BlackElo "2130"]
[Result "0-1"]
[Round "04"]
[TimeControl "180+1"]
[Date "2022.11.30"]
[WhiteClock "0:00:02"]
[BlackClock "0:00:22"]

1. e4 {[%clk 0:02:37]}  c5 {[%clk 0:02:58]} 2. Nf3 {[%clk 0:02:37]}  d6 {[%clk 0:02:57]} 3. d4 {[%clk 0:02:38]}  cxd4 {[%clk 0:02:58]} 4. Nxd4 {[%clk 0:02:37]}  Nf6 {[%clk 0:02:59]} 5. Nc3 {[%clk 0:02:38]}  a6 {[%clk 0:02:59]} 6. g3 {[%clk 0:02:38]}  e5 {[%clk 0:02:57]} 7. Nde2 {[%clk 0:02:39]}  Be7 {[%clk 0:02:56]} 8. Bg2 {[%clk 0:02:40]}  O-O {[%clk 0:02:57]} 9. O-O {[%clk 0:02:40]}  Be6 {[%clk 0:02:57]} 10. h3 {[%clk 0:02:35]}  Nbd7 {[%clk 0:02:57]} 11. a4 {[%clk 0:02:35]}  Rc8 {[%clk 0:02:55]} 12. b3 {[%clk 0:02:35]}  Qc7 {[%clk 0:02:54]} 13. Be3 {[%clk 0:02:35]}  Qa5 {[%clk 0:02:48]} 14. Qd2 {[%clk 0:02:21]}  Rc6 {[%clk 0:02:43]} 15. Nd5 {[%clk 0:02:10]}  Qd8 {[%clk 0:02:40]} 16. c4 {[%clk 0:01:51]}  Nc5 {[%clk 0:02:36]} 17. Nec3 {[%clk 0:01:48]}  Nxb3 {[%clk 0:02:35]} 18. Qd3 {[%clk 0:01:42]}  Nxa1 {[%clk 0:02:35]} 19. Rxa1 {[%clk 0:01:43]}  Bxd5 {[%clk 0:02:35]} 20. exd5 {[%clk 0:01:40]}  Rc8 {[%clk 0:02:34]} 21. Rb1 {[%clk 0:01:40]}  Qc7 {[%clk 0:02:33]} 22. Bf1 {[%clk 0:01:40]}  Nd7 {[%clk 0:02:31]} 23. h4 {[%clk 0:01:28]}  f5 {[%clk 0:02:31]} 24. Bh3 {[%clk 0:01:18]}  g6 {[%clk 0:02:23]} 25. h5 {[%clk 0:01:17]}  Nf6 {[%clk 0:02:21]} 26. hxg6 {[%clk 0:01:01]}  hxg6 {[%clk 0:02:22]} 27. Bxf5 {[%clk 0:01:00]}  gxf5 {[%clk 0:02:16]} 28. Qxf5 {[%clk 0:01:01]}  Nh7 {[%clk 0:02:06]} 29. Qg6+ {[%clk 0:00:46]}  Kh8 {[%clk 0:02:06]} 30. Kg2 {[%clk 0:00:42]}  Rg8 {[%clk 0:02:05]} 31. Qh5 {[%clk 0:00:35]}  Bd8 {[%clk 0:01:47]} 32. Ne4 {[%clk 0:00:22]}  Qxc4 {[%clk 0:01:43]} 33. Qf5 {[%clk 0:00:10]}  Qc7 {[%clk 0:01:37]} 34. Rh1 {[%clk 0:00:05]}  Rb8 {[%clk 0:01:24]} 35. Nxd6 {[%clk 0:00:02]}  Bh4 {[%clk 0:00:37]} 36. Rxh4 {[%clk 0:00:01]}  Rbf8 {[%clk 0:00:36]} 37. Nf7+ {[%clk 0:00:01]}  Qxf7 {[%clk 0:00:35]} 38. Qxe5+ {[%clk 0:00:01]}  Qf6 {[%clk 0:00:26]} 39. Qe4 {[%clk 0:00:02]}  Qf5 {[%clk 0:00:23]} 40. Bd4+ {[%clk 0:00:03]}  Rg7 {[%clk 0:00:23]} 41. Bxg7+ {[%clk 0:00:02]}  Kxg7 {[%clk 0:00:24]} 42. Qe7+ {[%clk 0:00:02]}  Rf7 {[%clk 0:00:24]} 43. Qe3 {[%clk 0:00:02]}  Qxd5+ {[%clk 0:00:24]} 44. Kh2 {[%clk 0:00:02]}  Qf5 {[%clk 0:00:24]} 45. Rf4 {[%clk 0:00:01]}  Qh5+ {[%clk 0:00:23]} 46. Kg2 {[%clk 0:00:02]}  Nf6 {[%clk 0:00:22]} 47. Qe5 {[%clk 0:00:02]}  Qxe5 {[%clk 0:00:22]} 0-1


[Site "https://www.chess.com"]

[Event "Titled Tuesday Blitz November 29 Late 2022"]
[White "Estrada Nieto, Julian"]
[Black "Hoffmann, Asa"]
[WhiteFideId "5101018"]
[BlackFideId "2001470"]
[WhiteElo "2221"]
[BlackElo "2117"]
[Result "1-0"]
[Round "04"]
[TimeControl "180+1"]
[Date "2022.11.30"]
[WhiteClock "0:01:16"]
[BlackClock "0:01:13"]

1. e4 {[%clk 0:03:00]}  d6 {[%clk 0:02:57]} 2. d4 {[%clk 0:03:00]}  Nf6 {[%clk 0:02:57]} 3. Nc3 {[%clk 0:03:00]}  c6 {[%clk 0:02:55]} 4. Nf3 {[%clk 0:03:00]}  Bg4 {[%clk 0:02:54]} 5. h3 {[%clk 0:02:50]}  Bh5 {[%clk 0:02:53]} 6. Bd3 {[%clk 0:02:46]}  e6 {[%clk 0:02:53]} 7. O-O {[%clk 0:02:45]}  d5 {[%clk 0:02:53]} 8. exd5 {[%clk 0:02:42]}  cxd5 {[%clk 0:02:53]} 9. Bg5 {[%clk 0:02:40]}  Nc6 {[%clk 0:02:52]} 10. g4 {[%clk 0:02:38]}  Bg6 {[%clk 0:02:51]} 11. Bxg6 {[%clk 0:02:36]}  hxg6 {[%clk 0:02:51]} 12. Kg2 {[%clk 0:02:36]}  Be7 {[%clk 0:02:43]} 13. Qe2 {[%clk 0:02:29]}  a6 {[%clk 0:02:42]} 14. Rfd1 {[%clk 0:02:13]}  Qb6 {[%clk 0:02:38]} 15. Bxf6 {[%clk 0:01:59]}  gxf6 {[%clk 0:02:36]} 16. b3 {[%clk 0:01:48]}  O-O-O {[%clk 0:02:33]} 17. Na4 {[%clk 0:01:47]}  Qb5 {[%clk 0:02:20]} 18. Qe3 {[%clk 0:01:32]}  Kb8 {[%clk 0:02:10]} 19. Nb2 {[%clk 0:01:29]}  Nb4 {[%clk 0:02:00]} 20. Rd2 {[%clk 0:01:26]}  Rc8 {[%clk 0:01:58]} 21. c4 {[%clk 0:01:26]}  Qd7 {[%clk 0:01:53]} 22. Na4 {[%clk 0:01:21]}  Ka7 {[%clk 0:01:38]} 23. Nc5 {[%clk 0:01:17]}  Bxc5 {[%clk 0:01:34]} 24. dxc5 {[%clk 0:01:17]}  Rhd8 {[%clk 0:01:16]} 25. c6+ {[%clk 0:01:17]}  d4 {[%clk 0:01:14]} 26. cxd7 {[%clk 0:01:17]}  dxe3 {[%clk 0:01:13]} 27. dxc8=Q {[%clk 0:01:17]}  Rxc8 {[%clk 0:01:13]} 28. fxe3 {[%clk 0:01:16]} 1-0


[Site "https://www.chess.com"]

[Event "Titled Tuesday Blitz November 29 Late 2022"]
[White "Fernandez Siles, Luis"]
[Black "Floresvillar Gonzalez, Luis Migu"]
[WhiteFideId "2209420"]
[BlackFideId "5100542"]
[WhiteElo "2186"]
[BlackElo "2040"]
[Result "1-0"]
[Round "04"]
[TimeControl "180+1"]
[Date "2022.11.30"]
[WhiteClock "0:00:50"]
[BlackClock "0:01:06"]

1. e4 {[%clk 0:03:00]}  e6 {[%clk 0:02:57]} 2. d4 {[%clk 0:03:00]}  d5 {[%clk 0:02:51]} 3. e5 {[%clk 0:02:59]}  c5 {[%clk 0:02:50]} 4. c3 {[%clk 0:02:55]}  Nc6 {[%clk 0:02:49]} 5. Nf3 {[%clk 0:02:54]}  Qb6 {[%clk 0:02:47]} 6. a3 {[%clk 0:02:54]}  cxd4 {[%clk 0:02:45]} 7. cxd4 {[%clk 0:02:54]}  Bd7 {[%clk 0:02:46]} 8. Nc3 {[%clk 0:02:53]}  Nge7 {[%clk 0:02:45]} 9. b4 {[%clk 0:02:50]}  Nf5 {[%clk 0:02:43]} 10. Be3 {[%clk 0:02:50]}  Nxe3 {[%clk 0:02:36]} 11. fxe3 {[%clk 0:02:51]}  Be7 {[%clk 0:02:35]} 12. Bd3 {[%clk 0:02:51]}  g6 {[%clk 0:02:34]} 13. O-O {[%clk 0:02:49]}  Rc8 {[%clk 0:02:27]} 14. Na4 {[%clk 0:02:48]}  Qd8 {[%clk 0:02:24]} 15. Nc5 {[%clk 0:02:48]}  b6 {[%clk 0:02:17]} 16. Nb7 {[%clk 0:02:07]}  Qc7 {[%clk 0:02:11]} 17. Ba6 {[%clk 0:02:07]}  Rb8 {[%clk 0:02:11]} 18. Rc1 {[%clk 0:01:40]}  Bc8 {[%clk 0:01:51]} 19. Nd6+ {[%clk 0:01:30]}  Bxd6 {[%clk 0:01:50]} 20. exd6 {[%clk 0:01:31]}  Qxd6 {[%clk 0:01:50]} 21. Bb5 {[%clk 0:01:10]}  Bd7 {[%clk 0:01:48]} 22. Bxc6 {[%clk 0:01:08]}  Bxc6 {[%clk 0:01:48]} 23. Ne5 {[%clk 0:01:08]}  Bb5 {[%clk 0:01:27]} 24. Rxf7 {[%clk 0:01:08]}  Rf8 {[%clk 0:01:19]} 25. Qf3 {[%clk 0:00:52]}  Rb7 {[%clk 0:01:06]} 26. Rc8+ {[%clk 0:00:50]} 1-0


[Site "https://www.chess.com"]

[Event "Titled Tuesday Blitz November 29 Late 2022"]
[White "Figorito, Nick"]
[Black "Vargas Pereda, Jesus Manue"]
[WhiteFideId "30923689"]
[BlackFideId "5115710"]
[WhiteElo "2336"]
[BlackElo "1950"]
[Result "1-0"]
[Round "04"]
[TimeControl "180+1"]
[Date "2022.11.30"]
[WhiteClock "0:00:53"]
[BlackClock "0:01:21"]

1. Nf3 {[%clk 0:03:00]}  Nf6 {[%clk 0:02:57]} 2. g3 {[%clk 0:03:01]}  g6 {[%clk 0:02:57]} 3. Bg2 {[%clk 0:03:02]}  Bg7 {[%clk 0:02:57]} 4. O-O {[%clk 0:03:03]}  O-O {[%clk 0:02:57]} 5. c4 {[%clk 0:03:03]}  c5 {[%clk 0:02:55]} 6. d4 {[%clk 0:03:03]}  cxd4 {[%clk 0:02:55]} 7. Nxd4 {[%clk 0:03:04]}  Nc6 {[%clk 0:02:55]} 8. Nc2 {[%clk 0:03:05]}  d6 {[%clk 0:02:52]} 9. Nc3 {[%clk 0:03:05]}  e5 {[%clk 0:02:47]} 10. Bg5 {[%clk 0:03:02]}  Be6 {[%clk 0:02:46]} 11. Ne3 {[%clk 0:02:59]}  h6 {[%clk 0:02:38]} 12. Bxf6 {[%clk 0:02:59]}  Bxf6 {[%clk 0:02:37]} 13. Ned5 {[%clk 0:02:58]}  Bg7 {[%clk 0:02:37]} 14. e3 {[%clk 0:02:53]}  Rb8 {[%clk 0:02:36]} 15. Qd2 {[%clk 0:02:52]}  f5 {[%clk 0:02:35]} 16. Rad1 {[%clk 0:02:46]}  Kh7 {[%clk 0:02:33]} 17. b3 {[%clk 0:02:40]}  Qd7 {[%clk 0:02:27]} 18. Rfe1 {[%clk 0:02:39]}  Rbd8 {[%clk 0:02:26]} 19. Nb5 {[%clk 0:02:35]}  a6 {[%clk 0:02:23]} 20. Nbc3 {[%clk 0:02:29]}  e4 {[%clk 0:02:16]} 21. Nb6 {[%clk 0:02:20]}  Qf7 {[%clk 0:02:09]} 22. Ncd5 {[%clk 0:02:16]}  Ne5 {[%clk 0:02:08]} 23. Nf4 {[%clk 0:02:00]}  g5 {[%clk 0:02:00]} 24. Nxe6 {[%clk 0:02:00]}  Qxe6 {[%clk 0:02:00]} 25. Qd5 {[%clk 0:01:49]}  Qg6 {[%clk 0:01:44]} 26. Qxb7 {[%clk 0:01:40]}  Nf3+ {[%clk 0:01:35]} 27. Bxf3 {[%clk 0:01:38]}  exf3 {[%clk 0:01:35]} 28. Qxf3 {[%clk 0:01:37]}  f4 {[%clk 0:01:35]} 29. exf4 {[%clk 0:01:25]}  gxf4 {[%clk 0:01:33]} 30. Qe4 {[%clk 0:01:25]}  Rf5 {[%clk 0:01:31]} 31. Rd5 {[%clk 0:01:24]}  Rdf8 {[%clk 0:01:31]} 32. Rxf5 {[%clk 0:01:07]}  Rxf5 {[%clk 0:01:30]} 33. Nd5 {[%clk 0:01:05]}  fxg3 {[%clk 0:01:28]} 34. hxg3 {[%clk 0:01:02]}  Qf7 {[%clk 0:01:21]} 35. Ne7 {[%clk 0:00:53]} 1-0


[Site "https://www.chess.com"]

[Event "Titled Tuesday Blitz November 29 Late 2022"]
[White "Foerster-Yialamas, Lucas"]
[Black "Rodriguez Santiago, Jaime"]
[WhiteFideId "30901774"]
[BlackFideId "3100898"]
[WhiteElo "2067"]
[BlackElo "2025"]
[Result "1-0"]
[Round "04"]
[TimeControl "180+1"]
[Date "2022.11.30"]
[WhiteClock "0:02:02"]
[BlackClock "0:00:45"]

1. c4 {[%clk 0:03:00]}  Nf6 {[%clk 0:02:57]} 2. d3 {[%clk 0:02:56]}  e5 {[%clk 0:02:56]} 3. a3 {[%clk 0:02:53]}  d5 {[%clk 0:02:50]} 4. cxd5 {[%clk 0:02:51]}  Nxd5 {[%clk 0:02:50]} 5. Nf3 {[%clk 0:02:51]}  Nc6 {[%clk 0:02:48]} 6. e4 {[%clk 0:02:49]}  Nb6 {[%clk 0:02:37]} 7. Be3 {[%clk 0:02:47]}  Bg4 {[%clk 0:02:35]} 8. Be2 {[%clk 0:02:45]}  Be7 {[%clk 0:02:34]} 9. Nbd2 {[%clk 0:02:39]}  O-O {[%clk 0:02:31]} 10. O-O {[%clk 0:02:37]}  Bxf3 {[%clk 0:02:21]} 11. Nxf3 {[%clk 0:02:36]}  Bf6 {[%clk 0:02:17]} 12. Rc1 {[%clk 0:02:36]}  Nd4 {[%clk 0:02:17]} 13. Nxd4 {[%clk 0:02:30]}  exd4 {[%clk 0:02:17]} 14. Bf4 {[%clk 0:02:31]}  Rc8 {[%clk 0:02:16]} 15. e5 {[%clk 0:02:28]}  Bg5 {[%clk 0:02:13]} 16. Qd2 {[%clk 0:02:26]}  Bxf4 {[%clk 0:02:08]} 17. Qxf4 {[%clk 0:02:27]}  c5 {[%clk 0:02:08]} 18. Bf3 {[%clk 0:02:13]}  Qe7 {[%clk 0:01:58]} 19. Rfe1 {[%clk 0:02:09]}  Nd7 {[%clk 0:01:47]} 20. Bxb7 {[%clk 0:02:05]}  Rb8 {[%clk 0:01:46]} 21. Bd5 {[%clk 0:02:05]}  Rxb2 {[%clk 0:01:40]} 22. e6 {[%clk 0:02:05]}  fxe6 {[%clk 0:01:35]} 23. Rxe6 {[%clk 0:02:05]}  Rxf4 {[%clk 0:00:47]} 24. Rxe7+ {[%clk 0:02:05]}  Kf8 {[%clk 0:00:48]} 25. Rxd7 {[%clk 0:02:05]}  Rbxf2 {[%clk 0:00:46]} 26. Bf3 {[%clk 0:02:04]}  Ra2 {[%clk 0:00:45]} 27. Rxc5 {[%clk 0:02:02]} 1-0


[Site "https://www.chess.com"]

[Event "Titled Tuesday Blitz November 29 Late 2022"]
[White "Forgacs, Attila Jr."]
[Black "Melikyan, Gnel"]
[WhiteFideId "773654"]
[BlackFideId "54109990"]
[WhiteElo "2168"]
[BlackElo "2138"]
[Result "0-1"]
[Round "04"]
[TimeControl "180+1"]
[Date "2022.11.30"]
[WhiteClock "0:00:03"]
[BlackClock "0:00:54"]

1. e4 {[%clk 0:03:00]}  Nc6 {[%clk 0:02:58]} 2. d4 {[%clk 0:02:59]}  d5 {[%clk 0:02:56]} 3. exd5 {[%clk 0:02:58]}  Qxd5 {[%clk 0:02:56]} 4. Nf3 {[%clk 0:02:58]}  Bg4 {[%clk 0:02:55]} 5. Nc3 {[%clk 0:02:48]}  Qd7 {[%clk 0:02:52]} 6. Be3 {[%clk 0:02:34]}  e6 {[%clk 0:02:49]} 7. Be2 {[%clk 0:02:32]}  Nf6 {[%clk 0:02:49]} 8. Ne5 {[%clk 0:02:14]}  Nxe5 {[%clk 0:02:46]} 9. dxe5 {[%clk 0:02:10]}  Bxe2 {[%clk 0:02:37]} 10. Qxe2 {[%clk 0:02:04]}  Nd5 {[%clk 0:02:33]} 11. Rd1 {[%clk 0:01:37]}  Bb4 {[%clk 0:02:05]} 12. O-O {[%clk 0:01:25]}  Bxc3 {[%clk 0:02:05]} 13. bxc3 {[%clk 0:01:24]}  Nxc3 {[%clk 0:02:04]} 14. Qg4 {[%clk 0:01:20]}  Nxd1 {[%clk 0:01:57]} 15. Rxd1 {[%clk 0:01:21]}  f5 {[%clk 0:01:29]} 16. Rxd7 {[%clk 0:00:30]}  fxg4 {[%clk 0:01:27]} 17. Rxc7 {[%clk 0:00:25]}  O-O {[%clk 0:01:26]} 18. Rxb7 {[%clk 0:00:16]}  Rfb8 {[%clk 0:01:25]} 19. Rb3 {[%clk 0:00:07]}  a5 {[%clk 0:01:23]} 20. Kf1 {[%clk 0:00:06]}  Rxb3 {[%clk 0:01:21]} 21. axb3 {[%clk 0:00:06]}  a4 {[%clk 0:01:20]} 22. bxa4 {[%clk 0:00:07]}  Rxa4 {[%clk 0:01:20]} 23. Ke2 {[%clk 0:00:07]}  Re4 {[%clk 0:01:20]} 24. Kd3 {[%clk 0:00:05]}  Rxe5 {[%clk 0:01:20]} 25. c4 {[%clk 0:00:06]}  Kf7 {[%clk 0:01:19]} 26. Kd4 {[%clk 0:00:06]}  Rh5 {[%clk 0:01:18]} 27. c5 {[%clk 0:00:05]}  Ke7 {[%clk 0:01:16]} 28. Bf4 {[%clk 0:00:02]}  Rd5+ {[%clk 0:01:14]} 29. Kc4 {[%clk 0:00:03]}  Kd7 {[%clk 0:01:14]} 30. Kb5 {[%clk 0:00:02]}  e5 {[%clk 0:01:12]} 31. Bg3 {[%clk 0:00:02]}  Kc7 {[%clk 0:01:03]} 32. h3 {[%clk 0:00:01]}  gxh3 {[%clk 0:01:02]} 33. gxh3 {[%clk 0:00:02]}  g5 {[%clk 0:01:01]} 34. h4 {[%clk 0:00:02]}  gxh4 {[%clk 0:01:00]} 35. Bxh4 {[%clk 0:00:03]}  Rd2 {[%clk 0:01:00]} 36. Bg3 {[%clk 0:00:02]}  Re2 {[%clk 0:00:59]} 37. Kc4 {[%clk 0:00:03]}  Kc6 {[%clk 0:00:58]} 38. Kd3 {[%clk 0:00:02]}  Ra2 {[%clk 0:00:56]} 39. Bxe5 {[%clk 0:00:02]}  Rxf2 {[%clk 0:00:56]} 40. Bd4 {[%clk 0:00:02]}  Rf7 {[%clk 0:00:56]} 41. Ke4 {[%clk 0:00:03]}  h5 {[%clk 0:00:54]} 0-1


[Site "https://www.chess.com"]

[Event "Titled Tuesday Blitz November 29 Late 2022"]
[White "Goncalves, Davi Sulzbacher"]
[Black "Gatterer, Florian"]
[WhiteFideId "2154510"]
[BlackFideId "811688"]
[WhiteElo "2182"]
[BlackElo "2218"]
[Result "1/2-1/2"]
[Round "04"]
[TimeControl "180+1"]
[Date "2022.11.30"]
[WhiteClock "0:00:19"]
[BlackClock "0:00:40"]

1. Nf3 {[%clk 0:03:00]}  d5 {[%clk 0:02:57]} 2. c4 {[%clk 0:03:01]}  c6 {[%clk 0:02:57]} 3. d4 {[%clk 0:03:01]}  Nf6 {[%clk 0:02:56]} 4. Nc3 {[%clk 0:03:01]}  a6 {[%clk 0:02:55]} 5. c5 {[%clk 0:03:01]}  g6 {[%clk 0:02:54]} 6. Bf4 {[%clk 0:03:01]}  Bg7 {[%clk 0:02:53]} 7. h3 {[%clk 0:03:00]}  O-O {[%clk 0:02:51]} 8. e3 {[%clk 0:02:59]}  Re8 {[%clk 0:02:50]} 9. Be2 {[%clk 0:02:57]}  Bf5 {[%clk 0:02:45]} 10. O-O {[%clk 0:02:54]}  Ne4 {[%clk 0:02:46]} 11. Nxe4 {[%clk 0:02:43]}  Bxe4 {[%clk 0:02:45]} 12. Qb3 {[%clk 0:02:39]}  Qc8 {[%clk 0:02:44]} 13. Ng5 {[%clk 0:02:27]}  Bf5 {[%clk 0:02:43]} 14. e4 {[%clk 0:02:23]}  Bxe4 {[%clk 0:02:30]} 15. Nxe4 {[%clk 0:02:22]}  dxe4 {[%clk 0:02:29]} 16. Bc4 {[%clk 0:02:23]}  e6 {[%clk 0:02:11]} 17. Rad1 {[%clk 0:02:17]}  Nd7 {[%clk 0:02:09]} 18. Rfe1 {[%clk 0:02:16]}  Nf6 {[%clk 0:02:09]} 19. Be5 {[%clk 0:02:12]}  Rd8 {[%clk 0:02:09]} 20. Qe3 {[%clk 0:02:00]}  Nd5 {[%clk 0:02:04]} 21. Qxe4 {[%clk 0:01:59]}  Bxe5 {[%clk 0:02:04]} 22. Qxe5 {[%clk 0:01:53]}  Rd7 {[%clk 0:02:04]} 23. h4 {[%clk 0:01:50]}  Qf8 {[%clk 0:02:01]} 24. h5 {[%clk 0:01:49]}  Qg7 {[%clk 0:02:00]} 25. Qg5 {[%clk 0:01:40]}  h6 {[%clk 0:01:59]} 26. Qg4 {[%clk 0:01:40]}  g5 {[%clk 0:01:59]} 27. Re5 {[%clk 0:01:26]}  Rad8 {[%clk 0:01:58]} 28. g3 {[%clk 0:01:21]}  Nf6 {[%clk 0:01:42]} 29. Qe2 {[%clk 0:01:20]}  Rxd4 {[%clk 0:01:41]} 30. Rxd4 {[%clk 0:01:15]}  Rxd4 {[%clk 0:01:41]} 31. b3 {[%clk 0:00:51]}  Nd7 {[%clk 0:01:38]} 32. Re3 {[%clk 0:00:26]}  Nxc5 {[%clk 0:01:38]} 33. Kg2 {[%clk 0:00:25]}  Rd8 {[%clk 0:01:16]} 34. b4 {[%clk 0:00:25]}  Nd7 {[%clk 0:01:15]} 35. Rd3 {[%clk 0:00:20]}  Qf6 {[%clk 0:01:14]} 36. Qd1 {[%clk 0:00:19]}  Qe7 {[%clk 0:01:13]} 37. Bb3 {[%clk 0:00:19]}  Kf8 {[%clk 0:01:12]} 38. Bc2 {[%clk 0:00:19]}  Ke8 {[%clk 0:01:12]} 39. Qf3 {[%clk 0:00:20]}  Nf6 {[%clk 0:01:10]} 40. Qe2 {[%clk 0:00:19]}  Rxd3 {[%clk 0:01:09]} 41. Qxd3 {[%clk 0:00:20]}  Qd8 {[%clk 0:01:09]} 42. Qc3 {[%clk 0:00:21]}  Ke7 {[%clk 0:01:09]} 43. Qc5+ {[%clk 0:00:21]}  Qd6 {[%clk 0:01:09]} 44. Qb6 {[%clk 0:00:21]}  Qd7 {[%clk 0:01:01]} 45. Qc5+ {[%clk 0:00:21]}  Ke8 {[%clk 0:01:01]} 46. Qc3 {[%clk 0:00:20]}  Ke7 {[%clk 0:00:54]} 47. Qc5+ {[%clk 0:00:20]}  Qd6 {[%clk 0:00:54]} 48. Qb6 {[%clk 0:00:20]}  Qd7 {[%clk 0:00:40]} 49. Qc5+ {[%clk 0:00:19]} 1/2-1/2


[Site "https://www.chess.com"]

[Event "Titled Tuesday Blitz November 29 Late 2022"]
[White "Gonzalez, Francisco Silva"]
[Black "Gurevich, Dmitry"]
[WhiteFideId "1512285"]
[BlackFideId "2000407"]
[WhiteElo "2159"]
[BlackElo "2506"]
[Result "1/2-1/2"]
[Round "04"]
[TimeControl "180+1"]
[Date "2022.11.30"]
[WhiteClock "0:01:22"]
[BlackClock "0:00:13"]

1. d4 {[%clk 0:02:58]}  Nf6 {[%clk 0:02:59]} 2. c4 {[%clk 0:02:49]}  a6 {[%clk 0:02:59]} 3. a4 {[%clk 0:02:47]}  e6 {[%clk 0:02:57]} 4. Nf3 {[%clk 0:02:44]}  d5 {[%clk 0:02:56]} 5. Nc3 {[%clk 0:02:42]}  c5 {[%clk 0:02:48]} 6. dxc5 {[%clk 0:02:39]}  Bxc5 {[%clk 0:02:47]} 7. e3 {[%clk 0:02:39]}  O-O {[%clk 0:02:45]} 8. Be2 {[%clk 0:02:34]}  Nc6 {[%clk 0:02:45]} 9. cxd5 {[%clk 0:02:33]}  exd5 {[%clk 0:02:42]} 10. O-O {[%clk 0:02:33]}  Re8 {[%clk 0:02:38]} 11. b3 {[%clk 0:02:32]}  d4 {[%clk 0:02:35]} 12. exd4 {[%clk 0:02:30]}  Nxd4 {[%clk 0:02:35]} 13. Nxd4 {[%clk 0:02:30]}  Bxd4 {[%clk 0:02:34]} 14. Bb2 {[%clk 0:02:30]}  Be6 {[%clk 0:02:25]} 15. Rc1 {[%clk 0:02:22]}  Rc8 {[%clk 0:02:02]} 16. Ba1 {[%clk 0:02:19]}  Qb6 {[%clk 0:01:46]} 17. Nd5 {[%clk 0:02:19]}  Rxc1 {[%clk 0:01:39]} 18. Nxf6+ {[%clk 0:02:10]}  Bxf6 {[%clk 0:01:26]} 19. Qxc1 {[%clk 0:02:08]}  Bxa1 {[%clk 0:01:21]} 20. Qxa1 {[%clk 0:02:05]}  Bxb3 {[%clk 0:01:02]} 21. a5 {[%clk 0:02:04]}  Qe6 {[%clk 0:00:58]} 22. Qb2 {[%clk 0:01:48]}  Qxe2 {[%clk 0:00:51]} 23. Qxb3 {[%clk 0:01:48]}  Qe4 {[%clk 0:00:45]} 24. h3 {[%clk 0:01:44]}  h6 {[%clk 0:00:43]} 25. Rd1 {[%clk 0:01:41]}  Re7 {[%clk 0:00:28]} 26. Rd8+ {[%clk 0:01:38]}  Kh7 {[%clk 0:00:27]} 27. Rd1 {[%clk 0:01:39]}  Re5 {[%clk 0:00:24]} 28. Qxf7 {[%clk 0:01:35]}  Rg5 {[%clk 0:00:21]} 29. g4 {[%clk 0:01:26]}  Rxg4+ {[%clk 0:00:19]} 30. hxg4 {[%clk 0:01:21]}  Qxg4+ {[%clk 0:00:19]} 31. Kh2 {[%clk 0:01:22]}  Qxd1 {[%clk 0:00:19]} 32. Qf5+ {[%clk 0:01:22]}  Kg8 {[%clk 0:00:17]} 33. Qc8+ {[%clk 0:01:22]}  Kh7 {[%clk 0:00:15]} 34. Qf5+ {[%clk 0:01:22]}  Kg8 {[%clk 0:00:14]} 35. Qc8+ {[%clk 0:01:22]}  Kh7 {[%clk 0:00:13]} 36. Qf5+ {[%clk 0:01:22]} 1/2-1/2


[Site "https://www.chess.com"]